bitfinex-derivatives/quotes_BTCF0:USTF0_20251220
["timestamp","ask_amount","ask_price","bid_price","bid_amount"]
[1766206721404,0.02928711,88316.0,88300.0,0.0113312]
[1766206721602,0.00568,88319.0,88300.0,0.0113312]
[1766206721810,0.02928709,88318.0,88300.0,0.0113312]
[1766206722110,0.02928709,88317.0,88300.0,0.0113312]
[1766206722308,0.02928709,88316.0,88300.0,0.0113312]
[1766206722512,0.00568,88319.0,88300.0,0.0113312]
[1766206722707,0.02928707,88318.0,88300.0,0.0113312]
[1766206722909,0.02928707,88317.0,88300.0,0.0113312]
[1766206723099,0.02928707,88316.0,88300.0,0.0113312]
[1766206723299,0.00568,88319.0,88297.0,0.00568]
[1766206723495,0.02928706,88318.0,88298.0,0.0113315]
[1766206723700,0.02928706,88317.0,88298.0,0.0113315]
[1766206723900,0.02928706,88316.0,88298.0,0.0113315]
[1766206724100,0.00568,88319.0,88298.0,0.0113315]
[1766206724301,0.02928706,88318.0,88298.0,0.0113315]
[1766206724607,0.02928706,88317.0,88298.0,0.0113315]
[1766206724810,0.02928706,88316.0,88298.0,0.0113315]
[1766206725117,0.00568,88319.0,88298.0,0.0113315]
[1766206725317,0.02928715,88318.0,88298.0,0.0113315]
[1766206725506,0.02928715,88317.0,88298.0,0.0113315]
[1766206725707,0.02928715,88316.0,88298.0,0.0113315]
[1766206726005,0.00568,88319.0,88298.0,0.0113315]
[1766206726211,0.02928721,88318.0,88298.0,0.0113315]
[1766206726410,0.02928721,88317.0,88298.0,0.0113315]
[1766206726613,0.02928721,88316.0,88298.0,0.0113315]
[1766206726814,0.00568,88319.0,88298.0,0.0113315]
[1766206727014,0.02928724,88318.0,88298.0,0.0113315]
[1766206727213,0.02928724,88317.0,88298.0,0.0113315]
[1766206727414,0.02928724,88316.0,88298.0,0.0113315]
[1766206727617,0.00568,88319.0,88298.0,0.0113315]
[1766206727917,0.02928728,88318.0,88298.0,0.0113315]
[1766206728120,0.02928728,88317.0,88298.0,0.0113315]
[1766206728415,0.02928728,88316.0,88298.0,0.0113315]
[1766206728605,0.00568,88319.0,88298.0,0.0113315]
[1766206728805,0.02928731,88318.0,88298.0,0.0113315]
[1766206729005,0.02928731,88317.0,88298.0,0.0113315]
[1766206729207,0.02928731,88316.0,88298.0,0.0113315]
[1766206729416,0.00568,88319.0,88298.0,0.0113315]
[1766206729616,0.02928735,88318.0,88298.0,0.0113315]
[1766206729817,0.02928735,88317.0,88298.0,0.0113315]
[1766206730115,0.02928735,88316.0,88298.0,0.0113315]
[1766206730318,0.00568,88319.0,88298.0,0.0113315]
[1766206730618,0.02928738,88318.0,88298.0,0.0113315]
[1766206730914,0.02928738,88317.0,88298.0,0.0113315]
[1766206731119,0.02928738,88316.0,88298.0,0.0113315]
[1766206731320,0.00568,88319.0,88298.0,0.0113315]
[1766206731510,0.02928742,88318.0,88298.0,0.0113315]
[1766206731709,0.02928742,88317.0,88298.0,0.0113315]
[1766206731913,0.02928742,88316.0,88298.0,0.0113315]
[1766206732213,0.00568,88319.0,88298.0,0.0113315]
[1766206732417,0.02928744,88318.0,88298.0,0.0113315]
[1766206732716,0.02928744,88317.0,88298.0,0.0113315]
[1766206732907,0.02928744,88316.0,88298.0,0.0113315]
[1766206733107,0.00568,88319.0,88298.0,0.0113315]
[1766206733305,0.02928138,88318.0,88298.0,0.0113315]
[1766206733603,0.02928138,88317.0,88298.0,0.0113315]
[1766206733807,0.02928138,88316.0,88298.0,0.0113315]
[1766206734028,0.00568,88319.0,88298.0,0.0113315]
[1766206734322,0.02928139,88318.0,88298.0,0.0113315]
[1766206734518,0.02928139,88317.0,88298.0,0.0113315]
[1766206734718,0.02928139,88316.0,88298.0,0.0113315]
[1766206734919,0.00568,88319.0,88298.0,0.0113315]
[1766206735110,0.02928137,88318.0,88298.0,0.0113315]
[1766206735311,0.02928137,88317.0,88298.0,0.0113315]
[1766206735612,0.02928137,88316.0,88298.0,0.0113315]
[1766206735910,0.00568,88319.0,88298.0,0.0113315]
[1766206736210,0.02928137,88318.0,88298.0,0.0113315]
[1766206736410,0.02928137,88317.0,88298.0,0.0113315]
[1766206736613,0.02928137,88316.0,88298.0,0.0113315]
[1766206736813,0.00568,88319.0,88298.0,0.0113315]
[1766206737019,0.02928166,88318.0,88298.0,0.0113315]
[1766206737222,0.02928166,88317.0,88298.0,0.0113315]
[1766206737418,0.02928166,88316.0,88298.0,0.0113315]
[1766206737620,0.00568,88319.0,88298.0,0.0113315]
[1766206737823,0.02928179,88318.0,88298.0,0.0113315]
[1766206738021,0.02928179,88317.0,88298.0,0.0113315]
[1766206738323,0.02928179,88316.0,88298.0,0.0113315]
[1766206738524,0.00568,88319.0,88298.0,0.0113315]
[1766206738720,0.02928177,88318.0,88298.0,0.0113315]
[1766206739020,0.02928177,88317.0,88298.0,0.0113315]
[1766206739320,0.02928177,88316.0,88298.0,0.0113315]
[1766206739512,0.00568,88319.0,88298.0,0.0113315]
[1766206739821,0.02928208,88318.0,88302.0,0.011331]
[1766206740020,0.02928208,88317.0,88302.0,0.011331]
[1766206740216,0.02928208,88316.0,88302.0,0.011331]
[1766206740429,0.00568,88315.0,88302.0,0.011331]
[1766206740824,0.00568,88315.0,88298.0,0.0113314]
[1766206747622,0.00568,88315.0,88297.0,0.00568]
[1766206747623,0.0113274,88330.0,88300.0,0.150595]
[1766206747818,0.03485788,88329.0,88300.0,0.150595]
[1766206748023,0.02917788,88328.0,88309.0,0.0113299]
[1766206748218,0.02917788,88327.0,88309.0,0.0170099]
[1766206748520,0.02917788,88326.0,88309.0,0.0170099]
[1766206748833,0.00568,88329.0,88309.0,0.0170099]
[1766206749024,0.02905422,88328.0,88309.0,0.0170099]
[1766206749225,0.02905422,88327.0,88309.0,0.0170099]
[1766206749427,0.00568,88329.0,88309.0,0.0170099]
[1766206749620,0.02904763,88328.0,88309.0,0.0170099]
[1766206749822,0.02904763,88327.0,88309.0,0.0170099]
[1766206750020,0.00568,88329.0,88309.0,0.0170099]
[1766206750221,0.02904763,88328.0,88309.0,0.0170099]
[1766206750419,0.02904763,88327.0,88309.0,0.0170099]
[1766206750621,0.00568,88329.0,88309.0,0.0170099]
[1766206750923,0.02904293,88328.0,88309.0,0.0170099]
[1766206751125,0.02904293,88327.0,88309.0,0.0170099]
[1766206751425,0.00568,88329.0,88309.0,0.0170099]
[1766206751625,0.02903928,88328.0,88309.0,0.0170099]
[1766206751826,0.02903928,88327.0,88309.0,0.0170099]
[1766206752126,0.00568,88329.0,88309.0,0.0170099]
[1766206752331,0.02903677,88328.0,88309.0,0.0170099]
[1766206752517,0.00568,88329.0,88309.0,0.0170099]
[1766206752817,0.0290363,88328.0,88309.0,0.0170099]
[1766206753017,0.00568,88329.0,88309.0,0.0170099]
[1766206753218,0.02903628,88328.0,88309.0,0.0170099]
[1766206753512,0.00568,88329.0,88309.0,0.0170099]
[1766206753716,0.02903386,88328.0,88309.0,0.0170099]
[1766206753917,0.00568,88329.0,88309.0,0.0170099]
[1766206754117,0.02903384,88328.0,88309.0,0.0170099]
[1766206754327,0.00568,88329.0,88309.0,0.0170099]
[1766206754530,0.02903179,88328.0,88309.0,0.0170099]
[1766206754731,0.00568,88329.0,88309.0,0.0170099]
[1766206754931,0.02903179,88328.0,88309.0,0.0170099]
[1766206755114,0.00568,88329.0,88309.0,0.0170099]
[1766206755313,0.02903052,88328.0,88309.0,0.01701]
[1766206755518,0.00568,88327.0,88309.0,0.01701]
[1766206758924,0.00568,88327.0,88312.0,0.0113296]
[1766206777262,0.02913891,88326.0,88312.0,0.0113296]
[1766206777460,0.00568,88327.0,88312.0,0.0113296]
[1766206777649,0.02913891,88326.0,88312.0,0.0113296]
[1766206777852,0.00568,88327.0,88312.0,0.0113296]
[1766206778062,0.02913891,88326.0,88312.0,0.0113296]
[1766206778363,0.00568,88327.0,88312.0,0.0113296]
[1766206778553,0.02913899,88326.0,88312.0,0.0113296]
[1766206778754,0.00568,88327.0,88312.0,0.0113296]
[1766206779054,0.02913899,88326.0,88312.0,0.0113296]
[1766206779250,0.00568,88327.0,88312.0,0.0113296]
[1766206779454,0.02913892,88326.0,88312.0,0.0113296]
[1766206779654,0.00568,88327.0,88312.0,0.0113296]
[1766206779864,0.02913892,88326.0,88312.0,0.0113296]
[1766206780063,0.00568,88327.0,88312.0,0.0113296]
[1766206780262,0.02913892,88326.0,88312.0,0.0113296]
[1766206780463,0.00568,88327.0,88312.0,0.0113296]
[1766206780667,0.02913885,88326.0,88312.0,0.0113296]
[1766206780862,0.00568,88327.0,88312.0,0.0113296]
[1766206781063,0.02913885,88326.0,88312.0,0.0113296]
[1766206781265,0.00568,88327.0,88312.0,0.0113296]
[1766206781566,0.02913882,88326.0,88312.0,0.0113296]
[1766206781864,0.00568,88327.0,88312.0,0.0113296]
[1766206790770,0.06100178,88341.0,88309.0,0.00568]
[1766206790976,0.02913909,88340.0,88321.0,0.0113284]
[1766206791274,0.00568,88343.0,88324.0,0.0113281]
[1766206791576,0.02912202,88342.0,88324.0,0.0113281]
[1766206791775,0.00568,88343.0,88324.0,0.0113281]
[1766206791978,0.02853418,88342.0,88324.0,0.0113281]
[1766206792179,0.00568,88343.0,88324.0,0.0113281]
[1766206792476,0.0285269,88342.0,88324.0,0.0113281]
[1766206792671,0.00568,88343.0,88324.0,0.0113281]
[1766206792875,0.02852698,88342.0,88324.0,0.0113281]
[1766206793075,0.00568,88343.0,88324.0,0.0113281]
[1766206797883,0.0113258,88342.0,88324.0,0.0113281]
[1766206798084,0.0113258,88342.0,88322.0,0.0001698]
[1766206798271,0.00568,88343.0,88324.0,0.0113281]
[1766206800979,0.02796654,88342.0,88324.0,0.0113281]
[1766206801273,0.00568,88343.0,88324.0,0.0113281]
[1766206801475,0.15051155,88340.0,88324.0,0.0113281]
[1766206811487,0.00568,88343.0,88327.0,0.0113277]
[1766206811686,0.0113251,88349.0,88322.0,0.0001698]
[1766206811687,0.0113242,88355.0,88333.0,0.15051155]
[1766206811983,0.16183645,88350.0,88330.0,0.15051155]
[1766206812188,0.00568,88349.0,88330.0,0.16183885]
[1766206812889,0.00568,88349.0,88333.0,0.0113269]
[1766206817193,0.00568,88349.0,88328.0,0.00568]
[1766206817495,0.00568,88349.0,88329.0,0.0113275]
[1766206817883,0.00568,88349.0,88333.0,0.011327]
[1766206835314,0.00568,88349.0,88330.0,0.15048997]
[1766206835715,0.00568,88349.0,88331.0,0.0113271]
[1766206836409,0.00568,88349.0,88328.0,0.00568]
[1766206836606,0.15048997,88340.0,88325.0,0.0113279]
[1766206836815,0.15048997,88340.0,88326.0,0.00568]
[1766206837214,0.0113262,88339.0,88326.0,0.00568]
[1766206837416,0.0113262,88339.0,88322.0,0.0001698]
[1766206837613,0.0113262,88339.0,88323.0,0.00568]
[1766206837816,0.15616997,88340.0,88323.0,0.00568]
[1766206838020,0.15616997,88340.0,88324.0,0.0113281]
[1766206840217,0.15616997,88340.0,88327.0,0.0113276]
[1766206842222,0.15616997,88340.0,88323.0,0.0170082]
[1766206845120,0.15616997,88340.0,88327.0,0.0113277]
[1766206849327,0.15616997,88340.0,88323.0,0.0170082]
[1766206856036,0.15616997,88340.0,88326.0,0.0113279]
[1766206860140,0.15616997,88340.0,88325.0,0.00568]
[1766206860440,0.15616997,88340.0,88325.0,0.0113279]
[1766206863550,0.00568,88340.0,88325.0,0.0113279]
[1766206868642,0.00568,88340.0,88324.0,0.00568]
[1766206868843,0.1561893,88340.0,88324.0,0.00568]
[1766206869143,0.00568,88340.0,88324.0,0.0170081]
[1766206869544,0.00568,88340.0,88324.0,0.00568]
[1766206871248,0.00568,88340.0,88324.0,0.017008]
[1766206877759,0.00568,88340.0,88324.0,0.00568]
[1766206878165,0.1561893,88340.0,88324.0,0.00568]
[1766206880362,0.00568,88340.0,88324.0,0.00568]
[1766206883856,0.0113262,88339.0,88324.0,0.00568]
[1766206884061,0.00568,88340.0,88324.0,0.00568]
[1766206884367,0.0113266,88336.0,88324.0,0.00568]
[1766206884969,0.0170061,88340.0,88324.0,0.00568]
[1766206887273,0.16752376,88340.0,88324.0,0.00568]
[1766206887761,0.15619766,88340.0,88324.0,0.00568]
[1766206888473,0.00568,88340.0,88324.0,0.00568]
[1766206889172,0.00568,88340.0,88324.0,0.0170081]
[1766206889672,0.00568,88340.0,88324.0,0.00568]
[1766206891672,0.00568,88340.0,88325.0,0.011328]
[1766206891875,0.00568,88340.0,88324.0,0.00568]
[1766206893480,0.00568,88340.0,88325.0,0.0113279]
[1766206897980,0.00568,88340.0,88324.0,0.00568]
[1766206902986,0.00568,88340.0,88325.0,0.0113279]
[1766206909394,0.00568,88340.0,88326.0,0.0113278]
[1766206916393,0.00568,88340.0,88324.0,0.00568]
[1766206918401,0.00568,88340.0,88325.0,0.011328]
[1766206924796,0.00568,88340.0,88324.0,0.00568]
[1766206925002,0.00568,88340.0,88326.0,0.0113278]
[1766206929807,0.15617819,88340.0,88326.0,0.0113278]
[1766206934310,0.15617819,88340.0,88324.0,0.00568]
[1766206935212,0.15617819,88340.0,88325.0,0.0113279]
[1766206939416,0.00568,88340.0,88325.0,0.0113279]
[1766206942713,0.00568,88340.0,88324.0,0.00568]
[1766206943916,0.00568,88340.0,88325.0,0.0113279]
[1766206951618,0.15617819,88340.0,88325.0,0.0113279]
[1766206952123,0.00568,88340.0,88325.0,0.0113279]
[1766206952315,0.15617819,88340.0,88325.0,0.0113279]
[1766206952814,0.15617891,88340.0,88325.0,0.0113279]
[1766206956615,0.15617891,88340.0,88328.0,0.0113276]
[1766206958826,0.00568,88340.0,88328.0,0.0113276]
[1766206959522,0.0113244,88354.0,88331.0,0.0113271]
[1766206959719,0.03180761,88353.0,88337.0,0.0113264]
[1766206959920,0.02828761,88352.0,88337.0,0.0113264]
[1766206960119,0.00352,88353.0,88337.0,0.0113264]
[1766206960721,0.15049891,88350.0,88337.0,0.0113264]
[1766206964831,0.0113233,88362.0,88340.0,0.16182491]
[1766206965135,0.00352,88362.0,88345.0,0.0113254]
[1766206966318,0.00352,88362.0,88350.0,0.15049891]
[1766206966626,0.15049891,88370.0,88350.0,0.15049891]
[1766206966828,0.00568,88369.0,88351.0,0.0113246]
[1766206977134,0.0113212,88379.0,88359.0,0.15049891]
[1766206977339,0.15049891,88380.0,88360.0,0.0001698]
[1766206980246,0.00568,88382.0,88362.0,0.0113233]
[1766206980753,0.15049891,88380.0,88362.0,0.0113233]
[1766206981447,1.444,88424.0,88370.0,0.30099782]
[1766206981643,0.15049891,88400.0,88380.0,0.15049891]
[1766206981840,0.15049891,88400.0,88380.0,0.0113208]
[1766206982042,0.15049891,88400.0,88381.0,0.00352]
[1766206982043,0.15049891,88390.0,88381.0,0.00352]
[1766206982243,0.15049891,88391.0,88377.0,0.00568]
[1766206982947,0.01132,88388.0,88377.0,0.00424]
[1766206983151,0.15049891,88391.0,88374.0,0.00208]
[1766206983340,0.15049891,88391.0,88372.0,0.00208]
[1766206983948,0.15049891,88391.0,88373.0,0.0001697]
[1766206984148,0.0113201,88387.0,88373.0,0.0001697]
[1766206984351,0.00568,88386.0,88373.0,0.0001697]
[1766206986454,0.00568,88386.0,88371.0,0.00036]
[1766206992960,0.00568,88386.0,88371.0,0.0116821]
[1766206994160,0.00568,88386.0,88371.0,0.00036]
[1766207000957,0.00568,88386.0,88370.0,0.0001697]
[1766207003770,0.0170003,88386.0,88369.0,0.00568]
[1766207003957,0.0113207,88383.0,88368.0,0.00568]
[1766207004189,0.15036229,88380.0,88359.0,1.40868]
[1766207004469,0.0113231,88364.0,88348.0,0.00568]
[1766207004964,0.00568,88368.0,88330.0,0.15036229]
[1766207004965,0.0113242,88355.0,88331.0,1.44364]
[1766207005169,0.0113248,88351.0,88332.0,0.00568]
[1766207005373,0.00568,88359.0,88320.0,0.23133691]
[1766207005374,0.0113242,88355.0,88333.0,0.00568]
[1766207005568,0.0113242,88355.0,88334.0,0.00568]
[1766207005869,0.0001698,88353.0,88336.0,0.0001698]
[1766207007459,0.0001698,88353.0,88337.0,0.0113264]
[1766207013073,0.0001698,88353.0,88342.0,0.0113258]
[1766207013273,0.00224,88365.0,88344.0,0.0113255]
[1766207014376,0.0001698,88363.0,88344.0,0.0113255]
[1766207024883,0.011493,88363.0,88344.0,0.0113255]
[1766207025388,0.0001698,88363.0,88344.0,0.0113255]
[1766207030785,0.0001698,88363.0,88336.0,0.0001698]
[1766207031186,0.0001698,88363.0,88345.0,0.0113253]
[1766207032590,0.0113233,88362.0,88345.0,0.0113253]
[1766207032793,0.0113233,88362.0,88336.0,0.0001698]
[1766207032993,0.0113233,88362.0,88342.0,0.0113257]
[1766207036894,0.0001698,88363.0,88342.0,0.0113257]
[1766207037695,0.0001698,88363.0,88345.0,0.0113253]
[1766207040495,0.0114929,88363.0,88341.0,0.0113259]
[1766207046000,0.0113235,88360.0,88341.0,0.0113259]
[1766207046299,0.00568,88359.0,88341.0,0.0113259]
[1766207052900,0.00568,88359.0,88340.0,0.1504455]
[1766207053099,0.00568,88361.0,88349.0,0.1504455]
[1766207053402,0.00568,88361.0,88353.0,0.0113244]
[1766207055294,0.1504455,88370.0,88353.0,0.0113244]
[1766207055502,0.00568,88369.0,88353.0,0.0113244]
[1766207055695,0.0113214,88377.0,88356.0,0.0113239]
[1766207055897,0.1504455,88370.0,88356.0,0.0113239]
[1766207056907,0.1504455,88370.0,88354.0,0.0001698]
[1766207057099,0.0001698,88372.0,88355.0,0.0113241]
[1766207057498,0.1504455,88370.0,88355.0,0.0113241]
[1766207059007,0.1561255,88370.0,88355.0,0.0113241]
[1766207060506,0.1561255,88370.0,88354.0,0.0001698]
[1766207062211,0.1561255,88370.0,88355.0,0.0113241]
[1766207064111,0.1561255,88370.0,88354.0,0.0001698]
[1766207070313,0.1504455,88370.0,88354.0,0.0001698]
[1766207073213,0.1504455,88370.0,88355.0,0.0113241]
[1766207075919,0.1504455,88370.0,88310.0,0.29284274]
[1766207076111,0.1504455,88360.0,88340.0,0.1504455]
[1766207076414,0.1504455,88360.0,88341.0,0.00568]
[1766207076610,0.00568,88365.0,88341.0,0.00568]
[1766207077013,0.00568,88365.0,88347.0,0.0113252]
[1766207084720,0.00568,88365.0,88350.0,0.0113247]
[1766207087622,0.00568,88365.0,88353.0,0.0113244]
[1766207089815,0.00568,88365.0,88350.0,0.15040434]
[1766207090024,0.00568,88365.0,88351.0,0.0113246]
[1766207090819,0.00568,88365.0,88354.0,0.0113242]
[1766207092523,0.00568,88365.0,88355.0,0.00568]
[1766207095323,0.0001698,88372.0,88355.0,0.15608434]
[1766207095512,0.0001698,88372.0,88360.0,0.15040434]
[1766207095715,0.0001698,88372.0,88361.0,0.00568]
[1766207097220,0.0001698,88372.0,88362.0,0.0113233]
[1766207098027,0.00152,88378.0,88365.0,0.0113229]
[1766207098219,0.15040434,88400.0,88360.0,0.15040434]
[1766207098220,0.00568,88379.0,88368.0,0.15040434]
[1766207098420,0.00568,88381.0,88369.0,0.0113224]
[1766207098728,0.00568,88381.0,88370.0,0.15040434]
[1766207101221,0.15040434,88380.0,88367.0,0.0001698]
[1766207101421,0.15040434,88380.0,88366.0,0.00432]
[1766207101422,0.0113215,88376.0,88366.0,0.00432]
[1766207101625,0.0113215,88376.0,88363.0,0.00312]
[1766207101826,0.15040434,88380.0,88360.0,0.00296]
[1766207101827,0.16172624,88373.0,88360.0,0.00296]
[1766207102026,0.15040434,88370.0,88360.0,0.00296]
[1766207107330,0.00568,88373.0,88360.0,0.00296]
[1766207107733,0.00568,88373.0,88361.0,0.0113233]
[1766207111932,0.00568,88373.0,88360.0,0.00296]
[1766207115240,0.00568,88373.0,88360.0,0.0142835]
[1766207117042,0.00568,88373.0,88360.0,0.00296]
[1766207117440,0.00568,88373.0,88356.0,0.0001698]
[1766207118042,0.00568,88373.0,88356.0,0.0114938]
[1766207119045,0.00568,88373.0,88356.0,0.0001698]
[1766207119335,0.011322,88372.0,88356.0,0.0001698]
[1766207121645,0.00568,88373.0,88356.0,0.0001698]
[1766207123638,0.00568,88373.0,88357.0,0.0113239]
[1766207124846,0.00568,88373.0,88357.0,0.0113238]
[1766207127346,0.00568,88373.0,88360.0,0.0113235]
[1766207127947,0.00568,88373.0,88356.0,0.0114937]
[1766207132163,0.0170019,88373.0,88356.0,0.0001698]
[1766207136266,0.15040225,88380.0,88357.0,0.0113238]
[1766207136466,0.00568,88379.0,88357.0,0.0113238]
[1766207137169,0.0113216,88375.0,88357.0,0.0113238]
[1766207140768,0.00568,88379.0,88357.0,0.0113238]
[1766207142176,0.0113215,88377.0,88357.0,0.0113238]
[1766207154885,0.0113215,88377.0,88358.0,0.00568]
[1766207161688,0.00568,88379.0,88359.0,0.0113235]
[1766207161884,0.00568,88378.0,88359.0,0.0113235]
[1766207162586,0.00568,88378.0,88362.0,0.0113231]
[1766207170594,0.00568,88378.0,88365.0,0.0113228]
[1766207172394,0.00568,88378.0,88361.0,0.0113233]
[1766207174097,0.00568,88378.0,88364.0,0.011323]
[1766207175598,0.00568,88378.0,88367.0,0.0113226]
[1766207175795,0.0001698,88384.0,88367.0,0.0113226]
[1766207175998,0.00568,88383.0,88367.0,0.0113226]
[1766207177397,0.1503773,88380.0,88367.0,0.0113226]
[1766207178602,0.0001698,88384.0,88360.0,0.1503773]
[1766207178903,0.1503773,88380.0,88366.0,0.0113227]
[1766207179802,0.00568,88383.0,88369.0,0.0113224]
[1766207182901,0.00568,88383.0,88371.0,0.0113221]
[1766207183095,0.0001698,88384.0,88371.0,0.0113221]
[1766207185997,0.0001698,88384.0,88371.0,0.0170021]
[1766207189310,0.0001698,88384.0,88374.0,0.0113217]
[1766207190010,0.00568,88385.0,88374.0,0.0113217]
[1766207190512,0.00568,88386.0,88374.0,0.0113217]
[1766207194814,0.00568,88386.0,88372.0,0.011322]
[1766207196508,0.00568,88386.0,88371.0,0.00568]
[1766207201019,0.1503773,88381.0,88371.0,0.00568]
[1766207206119,0.00568,88386.0,88371.0,0.00568]
[1766207206820,0.0113203,88385.0,88371.0,0.00568]
[1766207208722,0.00568,88386.0,88371.0,0.00568]
[1766207213324,0.1503773,88381.0,88371.0,0.00568]
[1766207214727,0.1503773,88381.0,88371.0,0.017002]
[1766207215026,0.00568,88386.0,88371.0,0.017002]
[1766207218222,0.00568,88386.0,88371.0,0.00568]
[1766207221730,0.00568,88386.0,88369.0,0.0113222]
[1766207223224,0.00568,88386.0,88370.0,0.1503773]
[1766207224527,0.00568,88386.0,88370.0,0.15035649]
[1766207224830,0.00568,88386.0,88367.0,0.00568]
[1766207225331,0.0170002,88386.0,88367.0,0.00568]
[1766207226525,0.00568,88386.0,88368.0,0.0113224]
[1766207240845,0.00568,88386.0,88367.0,0.00568]
[1766207241243,0.02694117,88385.0,88367.0,0.00568]
[1766207241444,0.00568,88386.0,88367.0,0.00568]
[1766207244847,0.0170002,88386.0,88367.0,0.00568]
[1766207247551,0.00568,88386.0,88367.0,0.00568]
[1766207249651,0.00568,88386.0,88368.0,0.0113224]
[1766207249849,0.00568,88386.0,88367.0,0.00568]
[1766207251053,0.0113203,88385.0,88367.0,0.00568]
[1766207252458,0.0113207,88382.0,88367.0,0.00568]
[1766207252954,0.00568,88386.0,88373.0,0.0113218]
[1766207253156,0.0001698,88389.0,88373.0,0.0113218]
[1766207253355,0.0001698,88389.0,88376.0,0.0113214]
[1766207253545,0.0001698,88389.0,88379.0,0.15035929]
[1766207253745,0.15035929,88410.0,88379.0,0.15035929]
[1766207253953,0.03258734,88409.0,88379.0,0.15035929]
[1766207254154,0.02690734,88408.0,88379.0,0.15035929]
[1766207254365,0.02690734,88407.0,88377.0,0.00568]
[1766207254563,0.02690734,88406.0,88377.0,0.00568]
[1766207254768,0.00016969,88401.0,88383.0,0.00016969]
[1766207254968,0.03258734,88400.0,88383.0,0.00016969]
[1766207255155,0.00568,88400.0,88383.0,0.00016969]
[1766207256162,0.0113185,88399.0,88383.0,0.00016969]
[1766207256367,0.00568,88400.0,88383.0,0.00016969]
[1766207261570,0.00568,88400.0,88384.0,0.0113204]
[1766207261768,0.00568,88400.0,88383.0,0.00016969]
[1766207262166,0.0113195,88392.0,88370.0,0.0113222]
[1766207262372,0.0113195,88392.0,88373.0,0.0022]
[1766207262571,0.0113199,88389.0,88373.0,0.0022]
[1766207262774,0.0113202,88386.0,88373.0,0.0022]
[1766207263363,0.0113201,88387.0,88373.0,0.0022]
[1766207263774,0.0113196,88391.0,88373.0,0.0022]
[1766207267674,0.0169996,88391.0,88373.0,0.0022]
[1766207270576,0.15035929,88390.0,88373.0,0.0022]
[1766207270777,0.0169996,88391.0,88373.0,0.0022]
[1766207271780,0.0113203,88385.0,88371.0,0.00016969]
[1766207272081,0.15035929,88381.0,88359.0,0.00568]
[1766207272281,0.0113216,88376.0,88359.0,0.00568]
[1766207272872,0.0113216,88376.0,88359.0,0.00584969]
[1766207273177,0.01149129,88376.0,88359.0,0.00584969]
[1766207274387,0.00016969,88376.0,88359.0,0.00584969]
[1766207278983,0.0113216,88375.0,88359.0,0.00016969]
[1766207279371,0.00016969,88376.0,88359.0,0.00016969]
[1766207279577,0.0113221,88372.0,88359.0,0.00016969]
[1766207280687,0.0113217,88375.0,88359.0,0.00016969]
[1766207280887,0.00016969,88376.0,88348.0,0.00568]
[1766207280888,0.0113224,88369.0,88348.0,0.00568]
[1766207281983,0.0113224,88369.0,88350.0,0.00016969]
[1766207282184,0.0113232,88363.0,88350.0,0.00016969]
[1766207282677,0.011324,88357.0,88345.0,0.00152]
[1766207283988,0.0113235,88361.0,88345.0,0.00152]
[1766207284282,0.0113235,88361.0,88342.0,0.00011408]
[1766207285479,0.00568,88363.0,88342.0,4.08e-06]
[1766207285480,0.011324,88356.0,88342.0,4.08e-06]
[1766207286490,0.00016969,88358.0,88342.0,4.08e-06]
[1766207288577,0.00016969,88358.0,88343.0,0.0113257]
[1766207291187,0.00016969,88358.0,88342.0,4.08e-06]
[1766207292891,0.1504359,88352.0,88342.0,4.08e-06]
[1766207293094,0.1504359,88352.0,88330.0,0.1617631]
[1766207293293,0.0113244,88354.0,88330.0,0.1617631]
[1766207293294,0.1504359,88350.0,88331.0,0.00568]
[1766207293786,0.0113248,88351.0,88331.0,0.00568]
[1766207293989,0.00016969,88358.0,88332.0,0.011327]
[1766207294181,0.0113239,88357.0,88332.0,0.011327]
[1766207294594,0.1504652,88350.0,88332.0,0.011327]
[1766207295293,0.00568,88352.0,88336.0,0.0113265]
[1766207299696,0.00568,88352.0,88331.0,0.0170071]
[1766207299898,0.1504652,88350.0,88336.0,0.0113266]
[1766207300393,0.00568,88352.0,88336.0,0.0113266]
[1766207300791,0.1504652,88350.0,88331.0,0.00568]
[1766207300993,0.0113254,88346.0,88331.0,0.00568]
[1766207301390,0.0113254,88346.0,88322.0,0.02292878]
[1766207301592,0.0113254,88346.0,88323.0,0.00568]
[1766207302400,0.00568,88345.0,88323.0,0.00568]
[1766207302599,0.00568,88345.0,88330.0,0.1504652]
[1766207302895,0.00568,88345.0,88323.0,0.00568]
[1766207302896,0.0113262,88339.0,88323.0,0.00568]
[1766207303096,0.15063499,88340.0,88323.0,0.00568]
[1766207304899,0.00568,88339.0,88323.0,0.00568]
[1766207305995,0.00568,88339.0,88324.0,0.0113281]
[1766207308596,0.00568,88339.0,88323.0,0.00568]
[1766207312206,0.00568,88339.0,88324.0,0.0113281]
[1766207312507,0.00568,88339.0,88325.0,0.0113279]
[1766207313897,0.00568,88339.0,88328.0,0.0113276]
[1766207315109,0.00568,88339.0,88324.0,0.011328]
[1766207316002,0.00568,88339.0,88323.0,0.00568]
[1766207316307,0.0113264,88338.0,88323.0,0.00568]
[1766207316603,0.0113271,88332.0,88323.0,0.00568]
[1766207316805,0.0113275,88329.0,88316.0,0.00568]
[1766207317611,0.15049564,88330.0,88316.0,0.00568]
[1766207324099,0.00568,88331.0,88320.0,0.0113285]
[1766207324499,0.00568,88331.0,88320.0,0.16182414]
[1766207324899,0.00568,88331.0,88320.0,0.0113285]
[1766207331406,0.00568,88331.0,88316.0,0.017009]
[1766207332713,0.00568,88331.0,88316.0,0.00568]
[1766207333314,0.00568,88331.0,88317.0,0.011329]
[1766207340519,0.00568,88331.0,88316.0,0.00568]
[1766207341118,0.00568,88331.0,88316.0,0.0170091]
[1766207341618,0.00568,88331.0,88319.0,0.0113287]
[1766207341816,0.15049564,88330.0,88272.0,0.0113348]
[1766207342118,0.15049564,88310.0,88290.0,0.0113325]
[1766207342316,0.00577845,88309.0,88290.0,0.00568]
[1766207342718,0.00577845,88309.0,88290.0,0.15617564]
[1766207343017,0.00577845,88309.0,88291.0,0.0113323]
[1766207345418,0.00577845,88309.0,88290.0,0.15617564]
[1766207345626,0.00577845,88309.0,88299.0,0.0113313]
[1766207345627,5e-08,88309.0,88299.0,0.0113313]
[1766207347227,0.00016979,88322.0,88302.0,0.0113309]
[1766207347416,0.15049564,88320.0,88302.0,0.0113309]
[1766207349828,0.00568,88321.0,88302.0,0.0113309]
[1766207350015,0.15049564,88320.0,88302.0,0.0113309]
[1766207350628,0.15049564,88320.0,88305.0,0.0113305]
[1766207351123,0.00016979,88322.0,88308.0,0.0113301]
[1766207351329,0.00152,88321.0,88310.0,0.15049564]